[Event "*** Titled Tuesday Blitz"]
[Site "Chess.com"]
[Date "2019.05.07"]
[Round "5"]
[White "MITerryble"]
[Black "oskariot"]
[Result "1-0"]
[WhiteElo "2815"]
[BlackElo "2578"]
[TimeControl "180+2"]
[EndTime "14:10:59 PDT"]
[Termination "MITerryble won by resignation"]

1. e4 {[%clk 0:03:01.9]} 1... e6 {[%clk 0:02:57.9]} 2. d4 {[%clk 0:03:02.6]}
2... d5 {[%clk 0:02:59.5]} 3. exd5 {[%clk 0:03:04.3]} 3... exd5 {[%clk
0:03:00.3]} 4. Nf3 {[%clk 0:03:05.9]} 4... Nc6 {[%clk 0:03:00.2]} 5. h3 {[%clk
0:03:03.3]} 5... Bd6 {[%clk 0:03:00.8]} 6. Nc3 {[%clk 0:03:02.4]} 6... Nge7
{[%clk 0:02:59.6]} 7. Nb5 {[%clk 0:03:03.5]} 7... Bb4+ {[%clk 0:03:01.1]} 8. c3
{[%clk 0:03:04.2]} 8... Ba5 {[%clk 0:03:02.8]} 9. Bd3 {[%clk 0:03:05.4]} 9...
O-O {[%clk 0:02:57.7]} 10. Qc2 {[%clk 0:03:04.9]} 10... Ng6 {[%clk 0:02:48.2]}
11. O-O {[%clk 0:03:04.2]} 11... Nce7 {[%clk 0:02:42.7]} 12. Re1 {[%clk
0:02:42]} 12... c6 {[%clk 0:02:43.1]} 13. Na3 {[%clk 0:02:43.3]} 13... Bc7
{[%clk 0:02:43.5]} 14. Bg5 {[%clk 0:02:35.1]} 14... f6 {[%clk 0:02:34.9]} 15.
Bd2 {[%clk 0:02:35.6]} 15... Qd6 {[%clk 0:02:12.7]} 16. c4 {[%clk 0:02:13.4]}
16... Be6 {[%clk 0:02:13]} 17. c5 {[%clk 0:02:07.7]} 17... Qd7 {[%clk 0:02:14]}
18. Re2 {[%clk 0:02:06.2]} 18... Bf5 {[%clk 0:02:07.2]} 19. Bxf5 {[%clk
0:02:04.3]} 19... Nxf5 {[%clk 0:01:52.6]} 20. Rae1 {[%clk 0:02:04]} 20... Ngh4
{[%clk 0:01:38.8]} 21. Nxh4 {[%clk 0:02:03.3]} 21... Nxh4 {[%clk 0:01:40.7]} 22.
Re7 {[%clk 0:02:02.1]} 22... Qd8 {[%clk 0:01:29.9]} 23. Bh6 {[%clk 0:01:37.2]}
23... Rf7 {[%clk 0:01:19.1]} 24. Rxf7 {[%clk 0:01:31.7]} 24... Kxf7 {[%clk
0:01:20.1]} 25. Qxh7 {[%clk 0:01:32.3]} 25... Qh8 {[%clk 0:01:15]} 26. Qxh8
{[%clk 0:01:09.9]} 26... Rxh8 {[%clk 0:01:16.9]} 27. Bd2 {[%clk 0:01:08.3]}
27... Nf5 {[%clk 0:01:15.3]} 28. Nc2 {[%clk 0:01:09.3]} 28... Rh4 {[%clk
0:01:01.5]} 29. Bc3 {[%clk 0:01:03.2]} 29... g5 {[%clk 0:01:01.4]} 30. f3 {[%clk
0:01:01.9]} 30... Rh8 {[%clk 0:00:56.5]} 31. Ne3 {[%clk 0:00:41.6]} 31... Nxe3
{[%clk 0:00:48.3]} 32. Rxe3 {[%clk 0:00:43.5]} 32... Bf4 {[%clk 0:00:49.8]} 33.
Re2 {[%clk 0:00:44.3]} 33... b6 {[%clk 0:00:41.6]} 34. Kf2 {[%clk 0:00:31]}
34... bxc5 {[%clk 0:00:37.1]} 35. dxc5 {[%clk 0:00:32.9]} 35... Rd8 {[%clk
0:00:27.4]} 36. g3 {[%clk 0:00:24.7]} 36... Bc7 {[%clk 0:00:25]} 37. Bd4 {[%clk
0:00:25.3]} 37... Rh8 {[%clk 0:00:22.9]} 38. Kg2 {[%clk 0:00:26]} 38... Rb8
{[%clk 0:00:24.4]} 39. Bc3 {[%clk 0:00:16.1]} 39... Rd8 {[%clk 0:00:18.4]} 40.
Bd4 {[%clk 0:00:11.9]} 40... Rb8 {[%clk 0:00:19.4]} 41. Rc2 {[%clk 0:00:12.9]}
41... Rb4 {[%clk 0:00:18.8]} 42. Bf2 {[%clk 0:00:13.8]} 42... d4 {[%clk
0:00:15]} 43. Rd2 {[%clk 0:00:11.8]} 43... Be5 {[%clk 0:00:15.4]} 44. b3 {[%clk
0:00:13.1]} 44... Ke6 {[%clk 0:00:15.6]} 45. f4 {[%clk 0:00:12.9]} 45... gxf4
{[%clk 0:00:11.4]} 46. gxf4 {[%clk 0:00:14.8]} 46... Bxf4 {[%clk 0:00:11.9]} 47.
Rxd4 {[%clk 0:00:16.3]} 47... Rxd4 {[%clk 0:00:10.5]} 48. Bxd4 {[%clk
0:00:18.2]} 48... f5 {[%clk 0:00:10.9]} 49. h4 {[%clk 0:00:17.5]} 49... Bh6
{[%clk 0:00:08.2]} 50. Kf3 {[%clk 0:00:18.2]} 50... Kd5 {[%clk 0:00:09.3]} 51.
Be3 {[%clk 0:00:19.5]} 51... Bf8 {[%clk 0:00:10]} 52. h5 {[%clk 0:00:20.5]}
52... Ke6 {[%clk 0:00:11.5]} 53. b4 {[%clk 0:00:18.1]} 53... a6 {[%clk
0:00:12.1]} 54. a4 {[%clk 0:00:19.1]} 54... Kf6 {[%clk 0:00:11.6]} 55. h6 {[%clk
0:00:16.5]} 55... Kg6 {[%clk 0:00:12.4]} 56. b5 {[%clk 0:00:17.8]} 56... axb5
{[%clk 0:00:11.4]} 57. axb5 {[%clk 0:00:19.7]} 57... cxb5 {[%clk 0:00:10.7]} 58.
c6 {[%clk 0:00:20.5]} 58... Bd6 {[%clk 0:00:12.2]} 59. Bf4 {[%clk 0:00:21.6]}
59... Bxf4 {[%clk 0:00:03.1]} 60. Kxf4 {[%clk 0:00:23.5]} 60... b4 {[%clk
0:00:04.8]} 61. c7 {[%clk 0:00:24.7]} 1-0

[Event "*** Titled Tuesday Blitz"]
[Site "Chess.com"]
[Date "2019.05.07"]
[Round "5"]
[White "blitzking1729"]
[Black "IIIlllII1llIl"]
[Result "0-1"]
[WhiteElo "2484"]
[BlackElo "2728"]
[TimeControl "180+2"]
[EndTime "14:11:08 PDT"]
[Termination "IIIlllII1llIl won by checkmate"]

1. d4 {[%clk 0:03:00.4]} 1... g6 {[%clk 0:02:56.3]} 2. e4 {[%clk 0:02:54]} 2...
Bg7 {[%clk 0:02:56.8]} 3. Nc3 {[%clk 0:02:55]} 3... d6 {[%clk 0:02:57.9]} 4. Be3
{[%clk 0:02:56]} 4... a6 {[%clk 0:02:57.9]} 5. a4 {[%clk 0:02:55.7]} 5... Nf6
{[%clk 0:02:55.6]} 6. h3 {[%clk 0:02:54.1]} 6... O-O {[%clk 0:02:54.6]} 7. Qd2
{[%clk 0:02:54.1]} 7... e5 {[%clk 0:02:47.3]} 8. Nf3 {[%clk 0:02:53.2]} 8... Nc6
{[%clk 0:02:43.5]} 9. Be2 {[%clk 0:02:38]} 9... exd4 {[%clk 0:02:33]} 10. Nxd4
{[%clk 0:02:37.9]} 10... Re8 {[%clk 0:02:32.5]} 11. Nxc6 {[%clk 0:02:35.4]}
11... bxc6 {[%clk 0:02:34.4]} 12. Bf3 {[%clk 0:02:30]} 12... Rb8 {[%clk
0:02:04.1]} 13. Rb1 {[%clk 0:02:24.5]} 13... a5 {[%clk 0:01:06.7]} 14. O-O
{[%clk 0:02:22.7]} 14... Ba6 {[%clk 0:01:07.8]} 15. Rfe1 {[%clk 0:02:17.8]}
15... Nd7 {[%clk 0:01:08.8]} 16. b3 {[%clk 0:02:10.3]} 16... Ne5 {[%clk
0:00:14]} 17. Be2 {[%clk 0:02:08.5]} 17... Bxe2 {[%clk 0:00:14.7]} 18. Nxe2
{[%clk 0:02:07.8]} 18... c5 {[%clk 0:00:08.6]} 19. c4 {[%clk 0:01:23]} 19... Nc6
{[%clk 0:00:07.9]} 20. f3 {[%clk 0:01:18.5]} 20... Qd7 {[%clk 0:00:06.3]} 21.
Nf4 {[%clk 0:01:07.9]} 21... Rb7 {[%clk 0:00:07]} 22. Nd5 {[%clk 0:01:02.4]}
22... Reb8 {[%clk 0:00:07.2]} 23. Bh6 {[%clk 0:01:02.7]} 23... Bh8 {[%clk
0:00:08.2]} 24. Re3 {[%clk 0:00:58.8]} 24... Nd4 {[%clk 0:00:07.1]} 25. Rd3
{[%clk 0:00:44.6]} 25... c6 {[%clk 0:00:07.1]} 26. Ne3 {[%clk 0:00:23.6]} 26...
Nxb3 {[%clk 0:00:08.1]} 27. Rbxb3 {[%clk 0:00:22]} 27... Rxb3 {[%clk 0:00:10]}
28. Rxd6 {[%clk 0:00:23.4]} 28... Qe8 {[%clk 0:00:09]} 29. Bf4 {[%clk
0:00:20.9]} 29... Rb1+ {[%clk 0:00:06.1]} 30. Kh2 {[%clk 0:00:21.3]} 30... Be5
{[%clk 0:00:07.3]} 31. Ng4 {[%clk 0:00:18]} 31... R1b2 {[%clk 0:00:07.2]} 32.
Bxe5 {[%clk 0:00:16.4]} 32... Rxd2 {[%clk 0:00:08.2]} 33. Nf6+ {[%clk
0:00:17.3]} 33... Kf8 {[%clk 0:00:09.2]} 34. Nxe8 {[%clk 0:00:18.3]} 34... Rbb2
{[%clk 0:00:09]} 35. Rxd2 {[%clk 0:00:18.7]} 35... Rxd2 {[%clk 0:00:10.9]} 36.
Nd6 {[%clk 0:00:18.4]} 36... Ke7 {[%clk 0:00:11.3]} 37. Nb7 {[%clk 0:00:19.1]}
37... Rc2 {[%clk 0:00:10.2]} 38. Nxa5 {[%clk 0:00:19.1]} 38... Kd7 {[%clk
0:00:10.3]} 39. Bf4 {[%clk 0:00:16.4]} 39... f6 {[%clk 0:00:10.8]} 40. Be3
{[%clk 0:00:16.4]} 40... Kd6 {[%clk 0:00:11.3]} 41. Nb7+ {[%clk 0:00:17]} 41...
Kc7 {[%clk 0:00:12.4]} 42. Nxc5 {[%clk 0:00:18]} 42... Rxc4 {[%clk 0:00:13.7]}
43. a5 {[%clk 0:00:19]} 43... Rc2 {[%clk 0:00:14.7]} 44. Kg3 {[%clk 0:00:19]}
44... Kd6 {[%clk 0:00:14.2]} 45. a6 {[%clk 0:00:19.7]} 45... Ra2 {[%clk
0:00:15]} 46. f4 {[%clk 0:00:17.8]} 46... h5 {[%clk 0:00:13.7]} 47. Kf3 {[%clk
0:00:18.4]} 47... Ra3 {[%clk 0:00:14.4]} 48. g4 {[%clk 0:00:19.1]} 48... h4
{[%clk 0:00:14.1]} 49. g5 {[%clk 0:00:19.3]} 49... fxg5 {[%clk 0:00:15]} 50.
fxg5 {[%clk 0:00:19.4]} 50... Ke5 {[%clk 0:00:14.9]} 51. Ke2 {[%clk 0:00:20.4]}
51... Ra2+ {[%clk 0:00:15.3]} 52. Kd3 {[%clk 0:00:20.9]} 52... Ra3+ {[%clk
0:00:16.7]} 53. Kd2 {[%clk 0:00:21.8]} 53... Ra2+ {[%clk 0:00:18.1]} 54. Kc1
{[%clk 0:00:21.6]} 54... Ra3 {[%clk 0:00:18.4]} 55. Kb2 {[%clk 0:00:19.8]} 55...
Ra5 {[%clk 0:00:18.9]} 56. Kb3 {[%clk 0:00:15.6]} 56... Ra1 {[%clk 0:00:16.7]}
57. Na4 {[%clk 0:00:15]} 57... Rb1+ {[%clk 0:00:14.5]} 58. Kc4 {[%clk
0:00:14.6]} 58... Ra1 {[%clk 0:00:14.5]} 59. Kb4 {[%clk 0:00:15.4]} 59... Rb1+
{[%clk 0:00:15.3]} 60. Ka5 {[%clk 0:00:16.3]} 60... Rb5# {[%clk 0:00:16]} 0-1

[Event "*** Titled Tuesday Blitz"]
[Site "Chess.com"]
[Date "2019.05.07"]
[Round "5"]
[White "Jbd735"]
[Black "SirStrateg"]
[Result "1/2-1/2"]
[WhiteElo "2470"]
[BlackElo "2520"]
[TimeControl "180+2"]
[EndTime "14:11:09 PDT"]
[Termination "Game drawn by agreement"]

1. e4 {[%clk 0:03:01.9]} 1... d6 {[%clk 0:02:58.4]} 2. d4 {[%clk 0:03:02.9]}
2... Nf6 {[%clk 0:02:57.7]} 3. Nc3 {[%clk 0:03:03.8]} 3... c6 {[%clk 0:02:58]}
4. Nf3 {[%clk 0:03:02.8]} 4... Bg4 {[%clk 0:02:58.3]} 5. h3 {[%clk 0:03:02.8]}
5... Bh5 {[%clk 0:02:59.2]} 6. g4 {[%clk 0:02:58.1]} 6... Bg6 {[%clk 0:03:00]}
7. Bd3 {[%clk 0:02:59.1]} 7... e6 {[%clk 0:03:00.4]} 8. Bg5 {[%clk 0:02:56.3]}
8... Qb6 {[%clk 0:02:57.7]} 9. Qd2 {[%clk 0:02:54.3]} 9... d5 {[%clk 0:02:58.3]}
10. Bxf6 {[%clk 0:02:48.7]} 10... gxf6 {[%clk 0:03:00.2]} 11. O-O-O {[%clk
0:02:41.4]} 11... Na6 {[%clk 0:02:57.1]} 12. exd5 {[%clk 0:02:30.2]} 12... cxd5
{[%clk 0:02:56.4]} 13. Bb5+ {[%clk 0:02:29.3]} 13... Kd8 {[%clk 0:02:57.7]} 14.
Qf4 {[%clk 0:01:43.9]} 14... Be7 {[%clk 0:02:51.7]} 15. Rhe1 {[%clk 0:01:37.4]}
15... Nb4 {[%clk 0:02:51]} 16. Ba4 {[%clk 0:01:33.1]} 16... Rc8 {[%clk 0:02:49]}
17. Bb3 {[%clk 0:01:23]} 17... Qd6 {[%clk 0:02:28.1]} 18. Qh6 {[%clk 0:01:11.2]}
18... Bf8 {[%clk 0:02:21.7]} 19. Qd2 {[%clk 0:01:08.3]} 19... h5 {[%clk
0:02:22.4]} 20. Kb1 {[%clk 0:01:05.2]} 20... hxg4 {[%clk 0:02:22.9]} 21. hxg4
{[%clk 0:01:07.1]} 21... a6 {[%clk 0:02:21.9]} 22. Rh1 {[%clk 0:01:04.4]} 22...
Rxh1 {[%clk 0:02:21.7]} 23. Rxh1 {[%clk 0:01:06.3]} 23... Nc6 {[%clk 0:02:14.4]}
24. Nh4 {[%clk 0:01:02.8]} 24... Bh7 {[%clk 0:02:11.3]} 25. Nf5 {[%clk
0:01:01.6]} 25... Bxf5 {[%clk 0:02:10.7]} 26. gxf5 {[%clk 0:01:02.4]} 26... Kc7
{[%clk 0:02:03.4]} 27. Rh7 {[%clk 0:01:02.7]} 27... Kb8 {[%clk 0:01:58.8]} 28.
Rxf7 {[%clk 0:00:58.7]} 28... e5 {[%clk 0:02:00.2]} 29. Nxd5 {[%clk 0:00:55.7]}
29... Nxd4 {[%clk 0:02:00.4]} 30. Rxf6 {[%clk 0:00:51]} 30... Qd8 {[%clk
0:01:49.7]} 31. Rf7 {[%clk 0:00:42.4]} 31... Bh6 {[%clk 0:01:36.6]} 32. Qb4
{[%clk 0:00:28.2]} 32... Nb5 {[%clk 0:01:37.8]} 33. a4 {[%clk 0:00:23.9]} 33...
Nd6 {[%clk 0:01:38.7]} 34. Rf6 {[%clk 0:00:21.2]} 34... Bf8 {[%clk 0:01:35.8]}
35. Qb6 {[%clk 0:00:17.1]} 35... Ne4 {[%clk 0:01:30]} 36. Qxd8 {[%clk
0:00:15.8]} 36... Rxd8 {[%clk 0:01:29.9]} 37. Rf7 {[%clk 0:00:16]} 37... Nxf2
{[%clk 0:01:29.1]} 38. Nb6 {[%clk 0:00:15.2]} 38... Bd6 {[%clk 0:01:19]} 39. Rd7
{[%clk 0:00:12.8]} 39... Rxd7 {[%clk 0:01:18.5]} 40. Nxd7+ {[%clk 0:00:14.7]}
40... Kc7 {[%clk 0:01:19.9]} 41. Nf6 {[%clk 0:00:15.2]} 41... e4 {[%clk
0:01:16.1]} 42. Nd5+ {[%clk 0:00:09.9]} 42... Kd7 {[%clk 0:01:11.6]} 43. c3
{[%clk 0:00:09.8]} 43... Bc5 {[%clk 0:01:02.9]} 44. Kc2 {[%clk 0:00:07]} 44...
e3 {[%clk 0:01:04.4]} 45. Nf4 {[%clk 0:00:06.7]} 45... Ke7 {[%clk 0:01:00.5]}
46. Nd5+ {[%clk 0:00:04.7]} 46... Kd7 {[%clk 0:01:00.6]} 47. Nf4 {[%clk
0:00:05.6]} 47... a5 {[%clk 0:01:02]} 48. f6 {[%clk 0:00:04.9]} 48... b6 {[%clk
0:01:00.4]} 49. f7 {[%clk 0:00:04.7]} 49... Ne4 {[%clk 0:00:41.3]} 50. Kd3
{[%clk 0:00:03.5]} 50... Nf6 {[%clk 0:00:37.3]} 51. Ng6 {[%clk 0:00:03.4]} 51...
Nh7 {[%clk 0:00:38.5]} 52. Ke2 {[%clk 0:00:03.6]} 52... Kd8 {[%clk 0:00:30.6]}
53. Bc4 {[%clk 0:00:04.3]} 53... Kd7 {[%clk 0:00:30.9]} 54. Ne5+ {[%clk
0:00:04.8]} 54... Ke7 {[%clk 0:00:25.6]} 55. Ng4 {[%clk 0:00:04.5]} 55... Ng5
{[%clk 0:00:26.1]} 56. Nxe3 {[%clk 0:00:05]} 56... Nxf7 {[%clk 0:00:27.3]} 57.
Nf5+ {[%clk 0:00:04.8]} 57... Kf6 {[%clk 0:00:28]} 58. Bxf7 {[%clk 0:00:05]}
58... Kxf5 {[%clk 0:00:29.1]} 59. Bc4 {[%clk 0:00:05.5]} 59... Ke4 {[%clk
0:00:29.5]} 60. Bd3+ {[%clk 0:00:06.2]} 60... Kf4 {[%clk 0:00:30]} 61. Kd1
{[%clk 0:00:06.9]} 61... Ke3 {[%clk 0:00:31.2]} 62. Kc2 {[%clk 0:00:08.1]} 62...
Bd6 {[%clk 0:00:32.1]} 63. Bb5 {[%clk 0:00:08.9]} 63... Ke4 {[%clk 0:00:33.1]}
64. Kb3 {[%clk 0:00:09.7]} 64... Kd5 {[%clk 0:00:34.5]} 65. Bf1 {[%clk
0:00:10.1]} 65... Kc5 {[%clk 0:00:35.8]} 66. Bg2 {[%clk 0:00:11.6]} 66... Be5
{[%clk 0:00:37]} 67. Kc2 {[%clk 0:00:11.4]} 67... Bf4 {[%clk 0:00:37.9]} 68. b3
{[%clk 0:00:12.5]} 68... Bg3 {[%clk 0:00:39.1]} 69. Kd3 {[%clk 0:00:13.5]} 69...
Be1 {[%clk 0:00:40.2]} 70. Bf3 {[%clk 0:00:13.9]} 70... Bf2 {[%clk 0:00:41.3]}
71. Be2 {[%clk 0:00:14.6]} 71... Be1 {[%clk 0:00:42.6]} 72. Bf3 {[%clk
0:00:15.3]} 1/2-1/2

[Event "*** Titled Tuesday Blitz"]
[Site "Chess.com"]
[Date "2019.05.07"]
[Round "5"]
[White "MasterKroket"]
[Black "Slovak_fighter2000"]
[Result "1-0"]
[WhiteElo "2358"]
[BlackElo "2426"]
[TimeControl "180+2"]
[EndTime "14:11:10 PDT"]
[Termination "MasterKroket won by resignation"]

1. d4 {[%clk 0:03:01]} 1... g6 {[%clk 0:03:00.8]} 2. c4 {[%clk 0:03:02.2]} 2...
Bg7 {[%clk 0:03:02.3]} 3. Nf3 {[%clk 0:03:03.3]} 3... Nf6 {[%clk 0:03:03.1]} 4.
Nc3 {[%clk 0:03:03.3]} 4... d6 {[%clk 0:03:04.6]} 5. e4 {[%clk 0:03:04.8]} 5...
O-O {[%clk 0:03:05.9]} 6. Be2 {[%clk 0:03:06.2]} 6... Bg4 {[%clk 0:03:05.5]} 7.
O-O {[%clk 0:03:05.9]} 7... Nfd7 {[%clk 0:03:05.3]} 8. Be3 {[%clk 0:02:56.7]}
8... Nc6 {[%clk 0:03:04.3]} 9. d5 {[%clk 0:02:51.8]} 9... Ncb8 {[%clk
0:02:59.1]} 10. Nd4 {[%clk 0:02:50.4]} 10... Bxe2 {[%clk 0:02:59]} 11. Qxe2
{[%clk 0:02:52]} 11... c5 {[%clk 0:02:57.2]} 12. Nc2 {[%clk 0:02:43.9]} 12... a6
{[%clk 0:02:54.8]} 13. f4 {[%clk 0:02:37.5]} 13... b5 {[%clk 0:02:54.9]} 14.
cxb5 {[%clk 0:02:38]} 14... axb5 {[%clk 0:02:56.8]} 15. Qxb5 {[%clk 0:02:36.8]}
15... Na6 {[%clk 0:02:55.7]} 16. Qe2 {[%clk 0:02:23.1]} 16... Nc7 {[%clk
0:02:53.9]} 17. a4 {[%clk 0:02:18.9]} 17... Qb8 {[%clk 0:02:49]} 18. Nb5 {[%clk
0:01:54.2]} 18... Nxb5 {[%clk 0:02:31.4]} 19. axb5 {[%clk 0:01:55.3]} 19... Bxb2
{[%clk 0:02:31.1]} 20. Rxa8 {[%clk 0:01:52.3]} 20... Qxa8 {[%clk 0:02:33]} 21.
Qc4 {[%clk 0:01:38.2]} 21... Nb6 {[%clk 0:02:31.4]} 22. Qb3 {[%clk 0:01:38.6]}
22... Bg7 {[%clk 0:02:30.8]} 23. Rb1 {[%clk 0:01:32.4]} 23... Qa5 {[%clk
0:02:28.4]} 24. Na3 {[%clk 0:01:24.9]} 24... Ra8 {[%clk 0:02:15]} 25. Nc4 {[%clk
0:01:26]} 25... Qa7 {[%clk 0:02:16.4]} 26. h3 {[%clk 0:01:09.6]} 26... Nxc4
{[%clk 0:02:12.1]} 27. Qxc4 {[%clk 0:01:10.4]} 27... Qb6 {[%clk 0:02:13.6]} 28.
e5 {[%clk 0:01:06.6]} 28... Ra3 {[%clk 0:02:09.3]} 29. Bf2 {[%clk 0:01:04.1]}
29... h5 {[%clk 0:01:58.2]} 30. h4 {[%clk 0:01:02.9]} 30... Bh6 {[%clk
0:01:55.3]} 31. g3 {[%clk 0:01:01.2]} 31... Bg7 {[%clk 0:01:48.9]} 32. Re1
{[%clk 0:00:56.1]} 32... Kh7 {[%clk 0:01:37.6]} 33. exd6 {[%clk 0:00:55.8]}
33... exd6 {[%clk 0:01:36.1]} 34. Re7 {[%clk 0:00:57.2]} 34... Kg8 {[%clk
0:01:14.7]} 35. Re8+ {[%clk 0:00:54.4]} 35... Kh7 {[%clk 0:01:12.2]} 36. f5
{[%clk 0:00:54.8]} 36... Ra1+ {[%clk 0:01:02.1]} 37. Kg2 {[%clk 0:00:55.2]}
37... Rb1 {[%clk 0:01:02.8]} 38. Re7 {[%clk 0:00:45.5]} 38... Qxb5 {[%clk
0:00:51.8]} 39. fxg6+ {[%clk 0:00:44.9]} 39... fxg6 {[%clk 0:00:39]} 40. Qxb5
{[%clk 0:00:27.8]} 40... Rxb5 {[%clk 0:00:38.4]} 41. Re6 {[%clk 0:00:29.4]}
41... Be5 {[%clk 0:00:36.4]} 42. Be3 {[%clk 0:00:28.8]} 42... Rb2+ {[%clk
0:00:36.2]} 43. Kf3 {[%clk 0:00:28.2]} 43... Rb3 {[%clk 0:00:37.4]} 44. Kf2
{[%clk 0:00:28.7]} 44... c4 {[%clk 0:00:33.5]} 45. Bf4 {[%clk 0:00:29.6]} 45...
Bd4+ {[%clk 0:00:23.8]} 46. Ke2 {[%clk 0:00:28.1]} 46... Rb2+ {[%clk 0:00:23]}
47. Kd1 {[%clk 0:00:28.6]} 47... c3 {[%clk 0:00:23]} 48. Rxd6 {[%clk 0:00:25.9]}
48... Rg2 {[%clk 0:00:05]} 49. Rd7+ {[%clk 0:00:27]} 49... Kg8 {[%clk
0:00:05.9]} 50. Rc7 {[%clk 0:00:27.8]} 50... Rg1+ {[%clk 0:00:04.6]} 51. Kc2
{[%clk 0:00:28.2]} 51... Rg2+ {[%clk 0:00:05.9]} 52. Kd3 {[%clk 0:00:29.6]}
52... Bf6 {[%clk 0:00:06.6]} 53. d6 {[%clk 0:00:29]} 53... Kf8 {[%clk
0:00:06.3]} 54. d7 {[%clk 0:00:29.8]} 54... Bd8 {[%clk 0:00:06.3]} 55. Rc8
{[%clk 0:00:29.1]} 55... Ke7 {[%clk 0:00:05.6]} 56. Bg5+ {[%clk 0:00:30.6]}
56... Kxd7 {[%clk 0:00:06.4]} 57. Rxd8+ {[%clk 0:00:30.3]} 57... Ke6 {[%clk
0:00:07.7]} 58. Bf4 {[%clk 0:00:29.5]} 58... c2 {[%clk 0:00:08.3]} 59. Rc8
{[%clk 0:00:29.1]} 59... Kf5 {[%clk 0:00:09]} 60. Rxc2 {[%clk 0:00:29.2]} 60...
Rg1 {[%clk 0:00:10.9]} 61. Rc5+ {[%clk 0:00:29.9]} 61... Kf6 {[%clk 0:00:10.4]}
62. Ke4 {[%clk 0:00:30.3]} 62... Re1+ {[%clk 0:00:10.9]} 63. Be3 {[%clk
0:00:31.6]} 63... Ra1 {[%clk 0:00:10.4]} 64. Rc6+ {[%clk 0:00:32.9]} 64... Kg7
{[%clk 0:00:10.6]} 65. Bd4+ {[%clk 0:00:33.9]} 1-0

[Event "*** Titled Tuesday Blitz"]
[Site "Chess.com"]
[Date "2019.05.07"]
[Round "5"]
[White "Orest_Vovk"]
[Black "korason34"]
[Result "1/2-1/2"]
[WhiteElo "2453"]
[BlackElo "2587"]
[TimeControl "180+2"]
[EndTime "14:11:16 PDT"]
[Termination "Game drawn - insufficient material"]

1. h4 {[%clk 0:03:01.9]} 1... e5 {[%clk 0:02:57.9]} 2. h5 {[%clk 0:03:03.1]}
2... Nc6 {[%clk 0:02:58.5]} 3. d3 {[%clk 0:03:00.3]} 3... h6 {[%clk 0:02:59.8]}
4. c4 {[%clk 0:02:55.8]} 4... Nf6 {[%clk 0:03:00.7]} 5. Nc3 {[%clk 0:02:56.1]}
5... d5 {[%clk 0:02:58.6]} 6. cxd5 {[%clk 0:02:56.6]} 6... Nxd5 {[%clk
0:03:00.5]} 7. g3 {[%clk 0:02:55.8]} 7... Be7 {[%clk 0:03:00.6]} 8. Bg2 {[%clk
0:02:55.4]} 8... Nb6 {[%clk 0:03:01.5]} 9. Nf3 {[%clk 0:02:53.3]} 9... O-O
{[%clk 0:03:01.6]} 10. Be3 {[%clk 0:02:46.8]} 10... Re8 {[%clk 0:03:01.2]} 11.
Qd2 {[%clk 0:02:41.8]} 11... Bf8 {[%clk 0:03:01.7]} 12. Rh4 {[%clk 0:02:19.1]}
12... Be6 {[%clk 0:02:54.5]} 13. Ne4 {[%clk 0:01:39.2]} 13... Nd4 {[%clk
0:02:47.5]} 14. Nxd4 {[%clk 0:01:32.7]} 14... exd4 {[%clk 0:02:49.4]} 15. Bf4
{[%clk 0:01:33]} 15... Nd5 {[%clk 0:02:46.7]} 16. Kf1 {[%clk 0:01:31.1]} 16...
c5 {[%clk 0:02:33.5]} 17. Rc1 {[%clk 0:01:27.5]} 17... b6 {[%clk 0:02:34.3]} 18.
Kg1 {[%clk 0:01:17.7]} 18... Rc8 {[%clk 0:02:34.8]} 19. a3 {[%clk 0:01:16.1]}
19... Bf5 {[%clk 0:02:27.7]} 20. Bf3 {[%clk 0:01:08.7]} 20... Be7 {[%clk
0:02:28.2]} 21. Rh2 {[%clk 0:01:07]} 21... Nxf4 {[%clk 0:02:27.8]} 22. Qxf4
{[%clk 0:01:06.9]} 22... Bxe4 {[%clk 0:02:27.9]} 23. Bxe4 {[%clk 0:00:50.6]}
23... Bg5 {[%clk 0:02:28.2]} 24. Qf5 {[%clk 0:00:51]} 24... Rxe4 {[%clk
0:02:29.1]} 25. f4 {[%clk 0:00:45.3]} 25... Re3 {[%clk 0:02:16.1]} 26. fxg5
{[%clk 0:00:42.1]} 26... Rxg3+ {[%clk 0:02:16.8]} 27. Rg2 {[%clk 0:00:31.2]}
27... Rxg2+ {[%clk 0:02:17.2]} 28. Kxg2 {[%clk 0:00:31.7]} 28... Qxg5+ {[%clk
0:02:18.2]} 29. Qxg5 {[%clk 0:00:32.9]} 29... hxg5 {[%clk 0:02:20.1]} 30. Kf3
{[%clk 0:00:28.6]} 30... Kh7 {[%clk 0:02:21.1]} 31. Rg1 {[%clk 0:00:24.5]} 31...
Kh6 {[%clk 0:02:22.1]} 32. Rg4 {[%clk 0:00:25.8]} 32... Kxh5 {[%clk 0:02:22.3]}
33. Re4 {[%clk 0:00:26.7]} 33... Rc7 {[%clk 0:02:22.2]} 34. Re8 {[%clk
0:00:25.3]} 34... f5 {[%clk 0:02:20.2]} 35. b4 {[%clk 0:00:23.1]} 35... Kg6
{[%clk 0:02:15.1]} 36. bxc5 {[%clk 0:00:20.9]} 36... bxc5 {[%clk 0:02:15.3]} 37.
Re6+ {[%clk 0:00:21.2]} 37... Kf7 {[%clk 0:02:16.1]} 38. Ra6 {[%clk 0:00:20.8]}
38... Rb7 {[%clk 0:02:07.1]} 39. Rc6 {[%clk 0:00:15.1]} 39... Rb3 {[%clk
0:02:00.7]} 40. Rxc5 {[%clk 0:00:15.4]} 40... Rxa3 {[%clk 0:02:01.9]} 41. Rxf5+
{[%clk 0:00:15.5]} 41... Kg6 {[%clk 0:02:02.9]} 42. Rd5 {[%clk 0:00:14.4]} 42...
Ra4 {[%clk 0:02:04]} 43. Kg4 {[%clk 0:00:15.3]} 43... a5 {[%clk 0:02:04]} 44.
Rxg5+ {[%clk 0:00:16.3]} 44... Kf6 {[%clk 0:02:05.1]} 45. Rf5+ {[%clk
0:00:16.9]} 45... Ke6 {[%clk 0:02:05.7]} 46. Rg5 {[%clk 0:00:17.8]} 46... Ra2
{[%clk 0:01:53]} 47. Rxg7 {[%clk 0:00:17.6]} 47... Rxe2 {[%clk 0:01:52.6]} 48.
Ra7 {[%clk 0:00:17.2]} 48... Ra2 {[%clk 0:01:43.1]} 49. Kf4 {[%clk 0:00:17]}
49... Kd5 {[%clk 0:01:44.1]} 50. Rd7+ {[%clk 0:00:16.7]} 50... Kc5 {[%clk
0:01:45.3]} 51. Rc7+ {[%clk 0:00:15.4]} 51... Kd5 {[%clk 0:01:40.8]} 52. Rd7+
{[%clk 0:00:15.9]} 52... Kc5 {[%clk 0:01:41.8]} 53. Rc7+ {[%clk 0:00:17]} 53...
Kb4 {[%clk 0:01:37.8]} 54. Rc4+ {[%clk 0:00:11.5]} 54... Kb3 {[%clk 0:01:37.8]}
55. Ke4 {[%clk 0:00:07.4]} 55... Rh2 {[%clk 0:01:18.1]} 56. Kxd4 {[%clk
0:00:03.5]} 56... Rh4+ {[%clk 0:01:18.8]} 57. Kd5 {[%clk 0:00:04.9]} 57... Rh5+
{[%clk 0:01:11.5]} 58. Kc6 {[%clk 0:00:06.1]} 58... a4 {[%clk 0:01:11.9]} 59.
Rc1 {[%clk 0:00:06]} 59... Rh4 {[%clk 0:00:56.7]} 60. Kc5 {[%clk 0:00:05.4]}
60... Kb2 {[%clk 0:00:56.5]} 61. Rg1 {[%clk 0:00:04.9]} 61... a3 {[%clk
0:00:56.9]} 62. d4 {[%clk 0:00:06.2]} 62... a2 {[%clk 0:00:50.6]} 63. Rg2+
{[%clk 0:00:06.6]} 63... Kb3 {[%clk 0:00:49.5]} 64. Rxa2 {[%clk 0:00:08.5]}
64... Kxa2 {[%clk 0:00:51.4]} 65. d5 {[%clk 0:00:09.9]} 65... Kb3 {[%clk
0:00:52]} 66. d6 {[%clk 0:00:11.5]} 66... Rc4+ {[%clk 0:00:44.4]} 67. Kb6 {[%clk
0:00:09.2]} 67... Kb4 {[%clk 0:00:39.2]} 68. d7 {[%clk 0:00:09.8]} 68... Rd4
{[%clk 0:00:40.8]} 69. Kc7 {[%clk 0:00:10.9]} 69... Kc5 {[%clk 0:00:42.3]} 70.
d8=Q {[%clk 0:00:11.6]} 70... Rxd8 {[%clk 0:00:43.9]} 71. Kxd8 {[%clk
0:00:12.3]} 1/2-1/2